fUST/lending_fUST_20250218
["ID","MTS","AMOUNT","RATE_DAILY","PERIOD"]
[353456706,1739847039348,-2040.46633269,0.0001758,2]
[353456707,1739847039357,-500.0,0.000176,2]
[353456708,1739847039366,-255.1180816,0.0001764,2]
[353456709,1739847039375,-500.0,0.000177,2]
[353456710,1739847039384,-500.0,0.000178,2]
[353456711,1739847039394,-1003.66,0.000178,15]
[353456712,1739847039404,-500.0,0.000179,2]
[353456713,1739847039414,-300.0,0.000179,7]
[353456714,1739847039423,-4400.35504314,0.000179,2]
[353456716,1739847039432,-2040.46633269,0.0001798,2]
[353456718,1739847039442,-36728.3939884,0.0001799,2]
[353456720,1739847039451,-500.0,0.00018,2]
[353456722,1739847039461,-34525.16885642,0.00018,5]
[353456724,1739847039471,-520317.80170374,0.00018,15]
[353456727,1739847039488,-425.47575501,0.00018,5]
[353456730,1739847039500,-762.09441934,0.00018,5]
[353456731,1739847039512,-589.80977953,0.00018,5]
[353456736,1739847040059,-8302.04023817,0.00018,5]
[353456737,1739847040069,-39448.8614519,0.00018,15]
[353456738,1739847040112,-816.72000016,0.00018,15]
[353456748,1739847042970,-3113.77244737,0.00018,15]
[353456759,1739847045927,-15358.71711793,0.00018,15]
[353456760,1739847045980,-4726.24042785,0.00018,15]
[353456762,1739847933231,-161.88374919,0.00013426,2]
[353456763,1739847933252,-175.428824,0.00013562,2]
[353456764,1739847933273,-175.428824,0.00013699,2]
[353456765,1739847933295,-236.22304492,0.00014473,2]
[353456766,1739848035074,-151.59903317,0.00013276,4]
[353456767,1739848035096,-156.88698594,0.00014164,2]
[353456768,1739848038119,-343.11301406,0.00014164,2]
[353456769,1739848038143,-159.77695508,0.00014473,2]
[353456770,1739848038165,-150.0,0.000149,2]
[353456771,1739848038190,-300.0,0.000149,5]
[353456772,1739848038212,-24.57198997,0.00015772,5]
[353456777,1739848042093,-141.27242289,0.00015772,5]
[353456778,1739848042122,-157.34,0.000163,31]
[353456779,1739848042150,-19.25919938,0.000163,31]
[353456782,1739848044126,-138.08080062,0.000163,31]
[353456783,1739848044152,-157.34,0.000163,31]
[353456784,1739848044177,-157.34,0.000163,31]
[353456785,1739848044203,-157.34,0.000163,31]
[353456786,1739848044228,-71.47366499,0.000163,31]
[353456879,1739848232260,-150.0,0.000149,2]
[353456880,1739848232270,-260.55324725,0.00015289,2]
[353456881,1739848232279,-500.0,0.00015389,2]
[353456882,1739848232288,-304.98554255,0.00015489,2]
[353456894,1739848237948,-396.0,0.00014563,2]
[353456895,1739848237958,-202.89784457,0.00015189,2]
[353456897,1739848237969,-195.01445745,0.00015489,2]
[353456899,1739848237979,-500.0,0.00015589,2]
[353456900,1739848237990,-500.0,0.00015689,2]
[353456901,1739848237999,-500.0,0.00015789,2]
[353456902,1739848238009,-296.122482,0.00015853,2]
[353456903,1739848238018,-500.0,0.00015889,2]
[353456904,1739848238028,-500.0,0.00015989,2]
[353456905,1739848238037,-500.0,0.00016089,2]
[353456906,1739848238047,-500.0,0.00016189,2]
[353456907,1739848238057,-500.0,0.00016289,2]
[353456908,1739848238066,-85.86633501,0.000163,31]
[353456909,1739848238075,-157.34,0.000163,31]
[353456910,1739848238085,-500.0,0.00016389,2]
[353456911,1739848238095,-300.0,0.000164,6]
[353456912,1739848238104,-500.0,0.00016489,2]
[353456913,1739848238114,-300.0,0.00016499,2]
[353456914,1739848238124,-200.0,0.000165,6]
[353456915,1739848238133,-200.0,0.000165,6]
[353456916,1739848238143,-200.0,0.000165,6]
[353456917,1739848238152,-200.0,0.000165,2]
[353456918,1739848238161,-200.0,0.000165,2]
[353456919,1739848238171,-200.0,0.000165,3]
[353456920,1739848238183,-200.0,0.000165,3]
[353456921,1739848238192,-200.0,0.000165,5]
[353456922,1739848238202,-200.0,0.000165,5]
[353456923,1739848238211,-500.0,0.00016589,2]
[353456924,1739848238222,-500.0,0.00016689,2]
[353456925,1739848238233,-1000.0,0.00016759,30]
[353456926,1739848238243,-1000.0,0.00016759,30]
[353456927,1739848238255,-1000.0,0.00016759,30]
[353456928,1739848238266,-1000.0,0.00016759,30]
[353456929,1739848238276,-1000.0,0.00016759,30]
[353456930,1739848238287,-1187.81649,0.00016759,30]
[353456931,1739848238297,-399.198651,0.00016759,10]
[353456932,1739848238307,-500.0,0.00016789,2]
[353456933,1739848238318,-500.0,0.00016889,2]
[353456934,1739848238328,-500.0,0.00016989,2]
[353456935,1739848238338,-500.0,0.00017089,2]
[353456936,1739848238348,-500.0,0.00017189,2]
[353456937,1739848238358,-500.0,0.00017289,2]
[353456938,1739848238367,-500.0,0.00017389,2]
[353456939,1739848238377,-500.0,0.00017489,2]
[353456940,1739848238387,-396.0,0.00017563,2]
[353456941,1739848238398,-500.0,0.00017589,2]
[353456942,1739848238407,-170.0787211,0.0001764,2]
[353456943,1739848238416,-500.0,0.00017689,2]
[353456944,1739848238426,-794.82,0.00017789,2]
[353456945,1739848238437,-200.0,0.000178,20]
[353456946,1739848238447,-200.0,0.000178,20]
[353456947,1739848238457,-248.14457508,0.000178,20]
[353456948,1739848238466,-160.464871,0.0001786,3]
[353456949,1739848238479,-3000.0,0.000179,2]
[353456950,1739848238490,-364.0626,0.000179,7]
[353456951,1739848238500,-282.493,0.00017999,2]
[353456952,1739848238509,-256.45737761,0.00017999,2]
[353456953,1739848238519,-662.34,0.00017999,2]
[353456954,1739848238529,-500.0,0.00017999,2]
[353456955,1739848238538,-500.0,0.00017999,2]
[353456956,1739848238548,-500.0,0.00017999,2]
[353456957,1739848238558,-500.0,0.00017999,2]
[353456958,1739848238567,-442.13332849,0.00017999,2]
[353456959,1739848238577,-500.0,0.00017999,2]
[353456960,1739848238587,-500.0,0.00017999,2]
[353456961,1739848238596,-465.36555847,0.00017999,2]
[353456962,1739848238606,-34525.16885642,0.00018,5]
[353456963,1739848238615,-5039.71009603,0.00018,5]
[353456964,1739848238626,-1141838.98737631,0.00018,15]
[353457029,1739848240311,-2503.13729117,0.00018,15]
[353457268,1739849241121,-400.0,0.00010578,2]
[353457269,1739849241142,-400.0,0.00010685,2]
[353457270,1739849241162,-131.78716223,0.00013034,2]
[353457271,1739849243086,-732.5167208,0.00013034,2]
[353457272,1739849245082,-1335.34691971,0.00013034,2]
[353457273,1739849245110,-281.20317066,0.00013034,2]
[353457275,1739849314782,1039.66185671,0.00016792,90]
[353457276,1739849346102,-241.71984405,0.00013034,2]
[353457277,1739849346124,-700.0,0.00013068,2]
[353457278,1739849346146,-797.83329152,0.00013309,4]
[353457279,1739849346167,-175.428824,0.00013699,2]
[353457280,1739849346190,-700.0,0.00014438,2]
[353457281,1739849346212,-200.0,0.00014873,2]
[353457282,1739849346233,-396.0,0.00014873,2]
[353457283,1739849346255,-300.0,0.00014899,2]
[353457284,1739849346276,-285.95,0.000149,2]
[353457285,1739849346297,-500.0,0.000149,2]
[353457286,1739849346317,-10077.14434103,0.000149,2]
[353457287,1739849346338,-1594.4920573,0.0001514,2]
[353457291,1739849414611,600.0,0.00013068,2]
[353457292,1739849416257,600.0,0.00014438,2]
[353457293,1739849428052,1003.66,0.000148,3]
[353457319,1739849432413,-343.55762178,0.00015781,2]
[353457320,1739849432425,-62.23806732,0.00015781,2]
[353457321,1739849432435,-600.0,0.00015808,2]
[353457322,1739849432444,-500.0,0.00015881,2]
[353457323,1739849432454,-551.57298843,0.00015881,2]
[353457324,1739849432463,-500.000001,0.0001628,2]
[353457325,1739849432472,-5937.41508984,0.00016714,2]
[353457326,1739849432482,-300.0,0.00016784,2]
[353457327,1739849432491,-512.15,0.00016785,2]
[353457328,1739849432500,-500.0,0.00016785,2]
[353457329,1739849432510,-500.0,0.00016785,2]
[353457330,1739849432520,-544.22,0.00016785,2]
[353457331,1739849432529,-500.0,0.00016785,2]
[353457332,1739849432538,-500.0,0.00016785,2]
[353457333,1739849432547,-500.0,0.00016785,2]
[353457334,1739849432557,-500.0,0.00016785,2]
[353457335,1739849432569,-500.0,0.00016785,2]
[353457336,1739849432578,-500.0,0.00016785,2]
[353457337,1739849432587,-500.0,0.00016785,2]
[353457338,1739849432597,-500.0,0.00016785,2]
[353457339,1739849432607,-500.0,0.00016785,2]
[353457340,1739849432617,-500.0,0.00016785,2]
[353457341,1739849432627,-526.24,0.00016785,2]
[353457342,1739849432636,-500.0,0.00016785,2]
[353457343,1739849432648,-500.0,0.00016785,2]
[353457344,1739849432658,-500.0,0.00016785,2]
[353457345,1739849432667,-955.8,0.00016785,2]
[353457346,1739849432676,-500.0,0.00016785,2]
[353457347,1739849432685,-500.0,0.00016785,2]
[353457348,1739849432694,-500.0,0.00016785,2]
[353457349,1739849432704,-542.64,0.00016785,2]
[353457350,1739849432713,-500.0,0.00016785,2]
[353457351,1739849432722,-500.0,0.00016791,2]
[353457352,1739849432733,-500.0,0.00016791,2]
[353457353,1739849432744,-1000.0,0.00016792,30]
[353457354,1739849432753,-1000.0,0.00016792,30]
[353457355,1739849432763,-1000.0,0.00016792,30]
[353457356,1739849432773,-1000.0,0.00016792,30]
[353457357,1739849432782,-1000.0,0.00016792,30]
[353457358,1739849432792,-1187.81649,0.00016792,30]
[353457359,1739849432801,-368.6788923,0.00016792,35]
[353457360,1739849432811,-399.198651,0.00016792,10]
[353457361,1739849432820,-500.0,0.00016867,2]
[353457362,1739849432830,-500.0,0.00016867,2]
[353457363,1739849432839,-544.22,0.00016867,2]
[353457364,1739849432849,-500.0,0.00016867,2]
[353457365,1739849432859,-500.0,0.00016867,2]
[353457366,1739849432868,-500.0,0.00016867,2]
[353457367,1739849432878,-500.0,0.00016867,2]
[353457368,1739849432887,-500.0,0.00016867,2]
[353457369,1739849432896,-500.0,0.00016867,2]
[353457370,1739849432905,-500.0,0.00016867,2]
[353457371,1739849432914,-500.0,0.00016867,2]
[353457372,1739849432924,-500.0,0.00016867,2]
[353457373,1739849432933,-500.0,0.00016867,2]
[353457374,1739849432942,-526.24,0.00016867,2]
[353457375,1739849432952,-500.0,0.00016867,2]
[353457376,1739849432961,-500.0,0.00016867,2]
[353457377,1739849432970,-500.0,0.00016867,2]
[353457378,1739849432980,-500.0,0.00016867,2]
[353457379,1739849432990,-500.0,0.00016867,2]
[353457380,1739849433000,-500.0,0.00016867,2]
[353457381,1739849433009,-542.64,0.00016867,2]
[353457382,1739849433019,-500.0,0.00016867,2]
[353457383,1739849433029,-500.0,0.00016873,2]
[353457384,1739849433038,-500.0,0.00016873,2]
[353457385,1739849433048,-500.0,0.0001695,2]
[353457386,1739849433057,-486.47941237,0.0001695,2]
[353457387,1739849433067,-544.22,0.0001695,2]
[353457388,1739849433076,-140.35393767,0.0001695,2]
[353457389,1739849433097,-359.64606233,0.0001695,2]
[353457390,1739849433107,-309.43848565,0.0001695,2]
[353457431,1739849438126,-211.09352973,0.00016785,2]
[353457432,1739849438137,-500.0,0.00016785,2]
[353457433,1739849438147,-500.0,0.00016867,2]
[353457434,1739849438156,-190.56151435,0.0001695,2]
[353457435,1739849438166,-500.0,0.0001695,2]
[353457436,1739849438175,-500.0,0.0001695,2]
[353457437,1739849438186,-500.0,0.0001695,2]
[353457438,1739849438195,-500.0,0.0001695,2]
[353457439,1739849438205,-500.0,0.0001695,2]
[353457441,1739849438214,-500.0,0.0001695,2]
[353457443,1739849438223,-500.0,0.0001695,2]
[353457445,1739849438233,-500.0,0.0001695,2]
[353457447,1739849438245,-526.24,0.0001695,2]
[353457448,1739849438254,-500.0,0.0001695,2]
[353457449,1739849438263,-500.0,0.0001695,2]
[353457450,1739849438272,-500.0,0.0001695,2]
[353457451,1739849438281,-500.0,0.0001695,2]
[353457452,1739849438291,-500.0,0.0001695,2]
[353457453,1739849438300,-500.0,0.0001695,2]
[353457454,1739849438309,-542.64,0.0001695,2]
[353457455,1739849438319,-500.0,0.0001695,2]
[353457456,1739849438328,-500.0,0.0001695,2]
[353457457,1739849438338,-500.0,0.00016956,2]
[353457458,1739849438347,-500.0,0.00016956,2]
[353457459,1739849438448,-162.0,0.00017,6]
[353457460,1739849438459,-162.0,0.00017,6]
[353457461,1739849438468,-162.0,0.00017,16]
[353457462,1739849438479,-162.14457507,0.00017,16]
[353457463,1739849438489,-500.0,0.00017031,2]
[353457464,1739849438498,-500.0,0.00017031,2]
[353457465,1739849438508,-500.0,0.00017031,2]
[353457466,1739849438517,-288.72546099,0.00017031,2]
[353457467,1739849438527,-544.22,0.00017032,2]
[353457468,1739849438536,-500.0,0.00017032,2]
[353457469,1739849438546,-500.0,0.00017032,2]
[353457470,1739849438556,-500.0,0.00017032,2]
[353457471,1739849438566,-500.0,0.00017032,2]
[353457472,1739849438578,-500.0,0.00017032,2]
[353457473,1739849438587,-277.14,0.00017032,2]
[353457474,1739849438596,-500.0,0.00017032,2]
[353457475,1739849438607,-500.0,0.00017032,2]
[353457476,1739849438616,-588.43,0.00017032,2]
[353457477,1739849438626,-500.0,0.00017032,2]
[353457478,1739849438635,-526.24,0.00017032,2]
[353457479,1739849438646,-620.9,0.00017032,2]
[353457480,1739849438655,-500.0,0.00017032,2]
[353457481,1739849438664,-500.0,0.00017032,2]
[353457482,1739849438673,-500.0,0.00017032,2]
[353457483,1739849438683,-500.0,0.00017032,2]
[353457484,1739849438692,-500.0,0.00017032,2]
[353457485,1739849438702,-542.64,0.00017032,2]
[353457486,1739849438711,-500.0,0.00017032,2]
[353457487,1739849438720,-500.0,0.00017032,2]
[353457488,1739849438729,-500.0,0.00017038,2]
[353457489,1739849438740,-500.0,0.00017038,2]
[353457490,1739849438749,-544.22,0.00017114,2]
[353457491,1739849438758,-500.0,0.00017114,2]
[353457492,1739849438768,-500.0,0.00017114,2]
[353457493,1739849438778,-500.0,0.00017114,2]
[353457494,1739849438788,-500.0,0.00017114,2]
[353457495,1739849438799,-500.0,0.00017114,2]
[353457496,1739849438810,-500.0,0.00017114,2]
[353457497,1739849438819,-500.0,0.00017114,2]
[353457498,1739849438828,-526.24,0.00017114,2]
[353457499,1739849438837,-500.0,0.00017114,2]
[353457500,1739849438847,-500.0,0.00017114,2]
[353457501,1739849438857,-500.0,0.00017114,2]
[353457502,1739849438866,-500.0,0.00017114,2]
[353457503,1739849438875,-500.0,0.00017114,2]
[353457504,1739849438884,-542.64,0.00017114,2]
[353457505,1739849438893,-500.0,0.00017114,2]
[353457506,1739849438902,-500.0,0.0001712,2]
[353457507,1739849438912,-600.0,0.00017178,2]
[353457508,1739849438921,-544.22,0.00017196,2]
[353457509,1739849438930,-500.0,0.00017196,2]
[353457510,1739849438940,-500.0,0.00017196,2]
[353457511,1739849438949,-500.0,0.00017196,2]
[353457512,1739849438959,-500.0,0.00017196,2]
[353457513,1739849438968,-500.0,0.00017196,2]
[353457514,1739849438977,-500.0,0.00017196,2]
[353457515,1739849438987,-500.0,0.00017196,2]
[353457516,1739849438997,-526.24,0.00017196,2]
[353457517,1739849439007,-500.0,0.00017196,2]
[353457518,1739849439016,-500.0,0.00017196,2]
[353457519,1739849439026,-500.0,0.00017196,2]
[353457520,1739849439035,-500.0,0.00017196,2]
[353457521,1739849439044,-500.0,0.00017196,2]
[353457522,1739849439053,-542.64,0.00017196,2]
[353457523,1739849439063,-500.0,0.00017196,2]
[353457524,1739849439072,-500.0,0.00017202,2]
[353457525,1739849439082,-866.75755325,0.00017245,2]
[353457526,1739849439091,-544.22,0.00017278,2]
[353457527,1739849439101,-500.0,0.00017278,2]
[353457528,1739849439110,-500.0,0.00017278,2]
[353457529,1739849439119,-500.0,0.00017278,2]
[353457530,1739849439129,-500.0,0.00017278,2]
[353457531,1739849439138,-500.0,0.00017278,2]
[353457532,1739849439147,-500.0,0.00017278,2]
[353457533,1739849439156,-500.0,0.00017278,2]
[353457534,1739849439167,-526.24,0.00017278,2]
[353457535,1739849439176,-527.06,0.00017278,2]
[353457536,1739849439184,-500.0,0.00017278,2]
[353457537,1739849439194,-500.0,0.00017278,2]
[353457538,1739849439203,-500.0,0.00017278,2]
[353457539,1739849439213,-500.0,0.00017278,2]
[353457540,1739849439222,-542.64,0.00017278,2]
[353457541,1739849439231,-500.0,0.00017278,2]
[353457542,1739849439242,-500.0,0.00017284,2]
[353457543,1739849439251,-400.0,0.00017332,2]
[353457544,1739849439261,-544.22,0.00017361,2]
[353457545,1739849439270,-500.0,0.00017361,2]
[353457546,1739849439279,-591.11,0.00017361,2]
[353457547,1739849439288,-500.0,0.00017361,2]
[353457548,1739849439297,-303.19,0.00017361,2]
[353457549,1739849439307,-500.0,0.00017361,2]
[353457550,1739849439316,-500.0,0.00017361,2]
[353457551,1739849439325,-500.0,0.00017361,2]
[353457552,1739849439335,-526.24,0.00017361,2]
[353457553,1739849439344,-500.0,0.00017361,2]
[353457554,1739849439354,-500.0,0.00017361,2]
[353457555,1739849439363,-500.0,0.00017361,2]
[353457556,1739849439373,-500.0,0.00017361,2]
[353457557,1739849439383,-542.64,0.00017361,2]
[353457558,1739849439392,-500.0,0.00017361,2]
[353457559,1739849439401,-500.0,0.00017367,2]
[353457560,1739849439410,-544.22,0.00017443,2]
[353457561,1739849439419,-500.0,0.00017443,2]
[353457562,1739849439429,-500.0,0.00017443,2]
[353457563,1739849439438,-500.0,0.00017443,2]
[353457564,1739849439447,-500.0,0.00017443,2]
[353457565,1739849439457,-500.0,0.00017443,2]
[353457566,1739849439467,-526.24,0.00017443,2]
[353457567,1739849439476,-500.0,0.00017443,2]
[353457568,1739849439487,-500.0,0.00017443,2]
[353457569,1739849439496,-463.74,0.00017443,2]
[353457570,1739849439506,-219.13,0.00017443,2]
[353457571,1739849439516,-542.64,0.00017443,2]
[353457572,1739849439526,-500.0,0.00017443,2]
[353457573,1739849439535,-500.0,0.00017449,2]
[353457574,1739849439544,-256.45737761,0.00017471,2]
[353457575,1739849439554,-500.0,0.00017471,2]
[353457576,1739849439566,-500.0,0.00017471,2]
[353457577,1739849439576,-500.0,0.00017471,2]
[353457578,1739849439586,-500.0,0.00017471,2]
[353457579,1739849439595,-500.0,0.00017471,2]
[353457580,1739849439605,-500.0,0.00017471,2]
[353457581,1739849439615,-500.0,0.00017471,2]
[353457582,1739849439624,-500.0,0.00017471,2]
[353457583,1739849439634,-500.0,0.00017471,2]
[353457584,1739849439643,-500.0,0.00017471,2]
[353457585,1739849439653,-505.93945775,0.00017471,2]
[353457586,1739849439663,-500.0,0.00017471,2]
[353457587,1739849439672,-500.0,0.00017471,2]
[353457588,1739849439681,-506.1006419,0.00017471,2]
[353457589,1739849439690,-512.15,0.00017471,2]
[353457590,1739849439699,-500.0,0.00017471,2]
[353457592,1739849439708,-500.0,0.00017471,2]
[353457593,1739849439717,-500.0,0.00017471,2]
[353457594,1739849439727,-500.0,0.00017471,2]
[353457595,1739849439736,-500.0,0.00017471,2]
[353457596,1739849439745,-500.0,0.00017471,2]
[353457597,1739849439754,-500.0,0.00017471,2]
[353457599,1739849439763,-500.0,0.00017471,2]
[353457600,1739849439773,-500.0,0.00017471,2]
[353457601,1739849439782,-500.0,0.00017471,2]
[353457602,1739849439791,-500.0,0.00017471,2]
[353457603,1739849439800,-500.0,0.00017471,2]
[353457604,1739849439810,-500.0,0.00017471,2]
[353457605,1739849439819,-500.0,0.00017471,2]
[353457606,1739849439828,-463.75361296,0.00017471,2]
[353457607,1739849439838,-4390.43,0.00017471,2]
[353457608,1739849439847,-500.0,0.00017471,2]
[353457609,1739849439856,-500.0,0.00017471,2]
[353457610,1739849439866,-500.0,0.00017471,2]
[353457611,1739849439875,-500.0,0.00017471,2]
[353457612,1739849439885,-500.0,0.00017471,2]
[353457613,1739849439894,-500.0,0.00017471,2]
[353457614,1739849439903,-500.0,0.00017471,2]
[353457615,1739849439912,-500.0,0.00017471,2]
[353457616,1739849439922,-500.0,0.00017471,2]
[353457617,1739849439932,-1351.72,0.00017471,2]
[353457618,1739849439941,-500.0,0.00017471,2]
[353457619,1739849439950,-955.8,0.00017471,2]
[353457620,1739849439960,-500.0,0.00017471,2]
[353457622,1739849439970,-500.0,0.00017471,2]
[353457624,1739849439979,-500.0,0.00017471,2]
[353457625,1739849439989,-500.0,0.00017471,2]
[353457627,1739849439999,-500.0,0.00017471,2]
[353457629,1739849440008,-500.0,0.00017471,2]
[353457630,1739849440018,-500.0,0.00017471,2]
[353457631,1739849440027,-500.0,0.00017471,2]
[353457632,1739849440037,-213.82096509,0.00017471,2]
[353457633,1739849440047,-158.43153106,0.00017471,2]
[353457634,1739849440056,-503.35902159,0.00017472,2]
[353457635,1739849440065,-567.85033298,0.00017472,2]
[353457636,1739849440075,-500.0,0.00017472,2]
[353457638,1739849440085,-308.70503584,0.00017472,2]
[353457640,1739849440095,-503.25504373,0.00017472,2]
[353457641,1739849440104,-551.6,0.00017472,2]
[353457643,1739849440113,-533.08889368,0.00017472,2]
[353457645,1739849440122,-500.0,0.00017472,2]
[353457646,1739849440131,-502.83829158,0.00017472,2]
[353457647,1739849440141,-643.10457547,0.00017472,2]
[353457648,1739849440150,-500.2593566,0.00017472,2]
[353457649,1739849440159,-502.40141177,0.00017472,2]
[353457650,1739849440168,-501.39614052,0.00017472,2]
[353457651,1739849440178,-504.67125055,0.00017472,2]
[353457652,1739849440187,-501.15449852,0.00017472,2]
[353457654,1739849440197,-500.92874065,0.00017472,2]
[353457656,1739849440206,-500.53799889,0.00017472,2]
[353457657,1739849440215,-501.74621952,0.00017472,2]
[353457658,1739849440224,-502.28916816,0.00017472,2]
[353457659,1739849440234,-502.8444013,0.00017472,2]
[353457660,1739849440244,-500.0,0.00017472,2]
[353457662,1739849440254,-501.52816879,0.00017472,2]
[353457664,1739849440263,-501.25289769,0.00017472,2]
[353457666,1739849440272,-500.0,0.00017472,2]
[353457668,1739849440281,-502.96613369,0.00017472,2]
[353457669,1739849440290,-500.0,0.00017472,2]
[353457671,1739849440300,-502.09834023,0.00017472,2]
[353457673,1739849440309,-502.59285531,0.00017472,2]
[353457675,1739849440318,-500.0,0.00017472,2]
[353457677,1739849440328,-500.0,0.00017472,2]
[353457678,1739849440337,-500.0,0.00017472,2]
[353457679,1739849440347,-544.22,0.00017525,2]
[353457680,1739849440356,-500.0,0.00017525,2]
[353457681,1739849440366,-560.3,0.00017525,2]
[353457682,1739849440375,-500.0,0.00017525,2]
[353457683,1739849440385,-500.0,0.00017525,2]
[353457684,1739849440393,-500.0,0.00017525,2]
[353457685,1739849440403,-526.24,0.00017525,2]
[353457686,1739849440412,-500.0,0.00017525,2]
[353457687,1739849440421,-500.0,0.00017525,2]
[353457688,1739849440431,-542.64,0.00017525,2]
[353457689,1739849440440,-500.0,0.00017525,2]
[353457690,1739849440449,-297.39,0.00017531,2]
[353457691,1739849440459,-3425.41622989,0.00017543,2]
[353457692,1739849440469,-500.0,0.00017553,2]
[353457693,1739849440479,-500.0,0.00017553,2]
[353457694,1739849440488,-500.0,0.00017553,2]
[353457695,1739849440498,-500.0,0.00017553,2]
[353457696,1739849440507,-500.0,0.00017553,2]
[353457697,1739849440516,-500.0,0.00017553,2]
[353457698,1739849440525,-500.0,0.00017553,2]
[353457699,1739849440535,-500.0,0.00017553,2]
[353457700,1739849440545,-500.0,0.00017553,2]
[353457701,1739849440555,-500.0,0.00017553,2]
[353457702,1739849440565,-500.0,0.00017553,2]
[353457703,1739849440576,-500.0,0.00017553,2]
[353457704,1739849440586,-500.0,0.00017553,2]
[353457705,1739849440595,-500.0,0.00017553,2]
[353457706,1739849440606,-503.8143556,0.00017553,2]
[353457707,1739849440615,-500.0,0.00017553,2]
[353457708,1739849440625,-570.12996265,0.00017553,2]
[353457709,1739849440635,-500.0,0.00017553,2]
[353457710,1739849440645,-500.0,0.00017553,2]
[353457711,1739849440655,-500.0,0.00017553,2]
[353457712,1739849440665,-542.21,0.00017553,2]
[353457713,1739849440674,-500.0,0.00017553,2]
[353457714,1739849440684,-500.0,0.00017553,2]
[353457715,1739849440693,-500.0,0.00017553,2]
[353457716,1739849440703,-508.90642149,0.00017553,2]
[353457717,1739849440712,-500.0,0.00017553,2]
[353457718,1739849440721,-500.0,0.00017553,2]
[353457719,1739849440731,-500.0,0.00017553,2]
[353457720,1739849440741,-500.0,0.00017553,2]
[353457721,1739849440750,-500.0,0.00017553,2]
[353457722,1739849440760,-500.0,0.00017553,2]
[353457723,1739849440769,-500.0,0.00017553,2]
[353457724,1739849440779,-500.0,0.00017553,2]
[353457725,1739849440788,-500.0,0.00017553,2]
[353457726,1739849440797,-500.0,0.00017553,2]
[353457727,1739849440885,-500.0,0.00017553,2]
[353457728,1739849440894,-501.12109876,0.00017553,2]
[353457729,1739849440903,-500.0,0.00017553,2]
[353457730,1739849440913,-500.0,0.00017553,2]
[353457731,1739849440922,-500.0,0.00017553,2]
[353457732,1739849440931,-500.0,0.00017553,2]
[353457733,1739849440940,-4390.43,0.00017553,2]
[353457734,1739849440949,-500.0,0.00017553,2]
[353457735,1739849440959,-500.0,0.00017553,2]
[353457736,1739849440988,-500.0,0.00017553,2]
[353457737,1739849440997,-500.0,0.00017553,2]
[353457738,1739849441006,-500.0,0.00017553,2]
[353457739,1739849441016,-500.0,0.00017553,2]
[353457740,1739849441025,-500.0,0.00017553,2]
[353457741,1739849441034,-500.0,0.00017553,2]
[353457742,1739849441044,-500.0,0.00017553,2]
[353457743,1739849441053,-506.39,0.00017553,2]
[353457744,1739849441062,-1351.72,0.00017553,2]